[Event "Live Chess"]
[Site "Chess.com"]
[Date "2023.09.16"]
[Round "-"]
[White "KBT2007"]
[Black "AnthonyGabriel1"]
[Result "1/2-1/2"]
[WhiteElo "1903"]
[BlackElo "2177"]
[TimeControl "900+5"]
[EndTime "7:42:44 PDT"]
[Termination "Partida empatada por acordo"]

1. d4 {[%clk 0:15:01.8]} 1... d5 {[%clk 0:15:02.8]} 2. c4 {[%clk 0:15:06.3]}
2... e6 {[%clk 0:15:06.8]} 3. Nf3 {[%clk 0:15:09.6]} 3... Nf6 {[%clk 0:15:11.2]}
4. cxd5 {[%clk 0:15:12.9]} 4... exd5 {[%clk 0:15:15.5]} 5. g3 {[%clk 0:15:16.9]}
5... c6 {[%clk 0:15:19.7]} 6. Bg2 {[%clk 0:15:21.5]} 6... Bd6 {[%clk 0:15:24.2]}
7. O-O {[%clk 0:15:25.4]} 7... O-O {[%clk 0:15:24.6]} 8. Bg5 {[%clk 0:15:28.4]}
8... h6 {[%clk 0:15:28]} 9. Bxf6 {[%clk 0:15:24.5]} 9... Qxf6 {[%clk 0:15:31.7]}
10. Nc3 {[%clk 0:15:26.6]} 10... Re8 {[%clk 0:15:34.3]} 11. e3 {[%clk
0:15:30.3]} 11... Nd7 {[%clk 0:15:38.2]} 12. a3 {[%clk 0:15:22.4]} 12... Nf8
{[%clk 0:15:35.9]} 13. b4 {[%clk 0:15:18.1]} 13... Bg4 {[%clk 0:15:34.9]} 14. b5
{[%clk 0:14:55.6]} 14... Ne6 {[%clk 0:15:35.5]} 15. h3 {[%clk 0:14:49.5]} 15...
Bh5 {[%clk 0:15:31.2]} 16. e4 {[%clk 0:14:09.9]} 16... Ng5 {[%clk 0:15:26.6]}
17. g4 {[%clk 0:14:06.9]} 17... Nxf3+ {[%clk 0:15:22.7]} 18. Bxf3 {[%clk
0:14:03.9]} 18... Qf4 {[%clk 0:15:23.5]} 19. e5 {[%clk 0:14:04]} 19... Rxe5
{[%clk 0:15:27.2]} 20. dxe5 {[%clk 0:13:35.7]} 20... Bxe5 {[%clk 0:15:31.2]} 21.
Re1 {[%clk 0:13:39.7]} 21... Qh2+ {[%clk 0:15:08.2]} 22. Kf1 {[%clk 0:13:43.6]}
22... Bg6 {[%clk 0:14:35.2]} 23. Rc1 {[%clk 0:13:27.8]} 23... Qxh3+ {[%clk
0:14:36.9]} 24. Bg2 {[%clk 0:13:29.7]} 24... Qh2 {[%clk 0:14:17]} 25. Re3 {[%clk
0:12:41.7]} 25... Qf4 {[%clk 0:14:14.5]} 26. Qf3 {[%clk 0:11:51.1]} 26... Qc4+
{[%clk 0:13:21.3]} 27. Kg1 {[%clk 0:11:14.8]} 27... Bd4 {[%clk 0:12:28.6]} 28.
Re7 {[%clk 0:10:19.6]} 28... Rf8 {[%clk 0:11:49.7]} 29. Bf1 {[%clk 0:09:51]}
29... Qc5 {[%clk 0:11:41.1]} 30. Rxb7 {[%clk 0:09:42.3]} 30... Be4 {[%clk
0:11:21.6]} 31. Qg3 {[%clk 0:09:38.2]} 31... Qxa3 {[%clk 0:11:05.7]} 32. Nxe4
{[%clk 0:09:29.7]} 32... Qxc1 {[%clk 0:11:03.8]} 33. Nd6 {[%clk 0:09:19.7]}
33... Qe1 {[%clk 0:10:47.7]} 34. Qf3 {[%clk 0:08:59.5]} 34... Qe6 {[%clk
0:10:29.5]} 35. Nf5 {[%clk 0:08:28]} 35... Bf6 {[%clk 0:10:11.5]} 36. bxc6
{[%clk 0:07:43.9]} 36... Qxc6 {[%clk 0:10:12.9]} 37. Rxa7 {[%clk 0:07:46.8]}
37... Rb8 {[%clk 0:10:09.6]} 38. Ne7+ {[%clk 0:07:34]} 38... Bxe7 {[%clk
0:10:09.9]} 39. Rxe7 {[%clk 0:07:38.9]} 39... Qg6 {[%clk 0:10:03.4]} 40. Bh3
{[%clk 0:07:08.2]} 40... h5 {[%clk 0:09:51.6]} 41. Qg3 {[%clk 0:06:29.7]} 41...
Rb1+ {[%clk 0:09:49.5]} 42. Kg2 {[%clk 0:06:30.3]} 42... hxg4 {[%clk 0:09:37.2]}
43. Qxg4 {[%clk 0:06:20.9]} 43... Qxg4+ {[%clk 0:09:30.7]} 44. Bxg4 {[%clk
0:06:25.8]} 44... g6 {[%clk 0:09:12.2]} 45. Rd7 {[%clk 0:06:29.5]} 45... Rb4
{[%clk 0:08:52.5]} 46. Bf3 {[%clk 0:06:28.8]} 46... Rf4 {[%clk 0:08:49.8]} 47.
Bxd5 {[%clk 0:06:20.3]} 47... Kg7 {[%clk 0:08:50.8]} 48. Kg3 {[%clk 0:06:21.9]}
48... g5 {[%clk 0:08:55.4]} 49. Bb3 {[%clk 0:05:58.7]} 49... Kg6 {[%clk
0:08:58]} 50. Rd8 {[%clk 0:05:51.6]} 50... Kg7 {[%clk 0:09:01.2]} 1/2-1/2

[Event "Live Chess"]
[Site "Chess.com"]
[Date "2023.09.16"]
[Round "-"]
[White "zxsimon"]
[Black "KiwiDoFbi"]
[Result "0-1"]
[WhiteElo "1475"]
[BlackElo "1309"]
[TimeControl "900+5"]
[EndTime "7:42:44 PDT"]
[Termination "KiwiDoFbi venceu por xeque-mate"]

1. e4 {[%clk 0:14:51.4]} 1... c5 {[%clk 0:14:57]} 2. Nf3 {[%clk 0:14:52.2]} 2...
e6 {[%clk 0:14:55.6]} 3. d4 {[%clk 0:14:55]} 3... cxd4 {[%clk 0:14:59.2]} 4.
Nxd4 {[%clk 0:14:57.3]} 4... Nc6 {[%clk 0:15:03.1]} 5. Nc3 {[%clk 0:14:58.3]}
5... Bc5 {[%clk 0:15:02.5]} 6. Be3 {[%clk 0:15:01]} 6... Qb6 {[%clk 0:15:03]} 7.
Na4 {[%clk 0:14:51.9]} 7... Qa5+ {[%clk 0:14:51.1]} 8. Nc3 {[%clk 0:14:48.3]}
8... Nge7 {[%clk 0:14:30.1]} 9. Nxc6 {[%clk 0:14:49.5]} 9... Nxc6 {[%clk
0:14:32.9]} 10. Bxc5 {[%clk 0:14:53.1]} 10... Qxc5 {[%clk 0:14:36.6]} 11. Qf3
{[%clk 0:14:51.3]} 11... Nd4 {[%clk 0:14:35.1]} 12. Qd1 {[%clk 0:14:53]} 12...
b5 {[%clk 0:14:32.2]} 13. a3 {[%clk 0:14:51.9]} 13... a6 {[%clk 0:14:13.2]} 14.
Qd3 {[%clk 0:14:37.3]} 14... Bb7 {[%clk 0:14:07.2]} 15. b4 {[%clk 0:14:37.5]}
15... Qe5 {[%clk 0:14:07.7]} 16. f4 {[%clk 0:14:24.1]} 16... Qd6 {[%clk
0:13:47.4]} 17. e5 {[%clk 0:14:21.9]} 17... Qb6 {[%clk 0:13:49.9]} 18. Be2
{[%clk 0:14:00]} 18... O-O {[%clk 0:13:37.1]} 19. O-O-O {[%clk 0:13:59.5]} 19...
Nxe2+ {[%clk 0:13:37.3]} 20. Nxe2 {[%clk 0:13:58.5]} 20... Rac8 {[%clk
0:13:22.5]} 21. h4 {[%clk 0:13:53]} 21... Bxg2 {[%clk 0:13:21.6]} 22. Rhg1
{[%clk 0:13:54.9]} 22... Bd5 {[%clk 0:13:25.8]} 23. h5 {[%clk 0:13:56.9]} 23...
a5 {[%clk 0:13:20.5]} 24. h6 {[%clk 0:13:59.2]} 24... g6 {[%clk 0:13:24.2]} 25.
Rg3 {[%clk 0:13:54.3]} 25... axb4 {[%clk 0:13:27.5]} 26. Rdg1 {[%clk 0:13:47.8]}
26... Bc4 {[%clk 0:12:02.6]} 27. Rxg6+ {[%clk 0:13:40.8]} 27... fxg6 {[%clk
0:12:01.5]} 28. Rxg6+ {[%clk 0:13:42.5]} 28... Kh8 {[%clk 0:12:05.8]} 29. Qxd7
{[%clk 0:13:39.7]} 29... Qe3+ {[%clk 0:12:00.8]} 30. Kb2 {[%clk 0:13:42]} 30...
Qxa3+ {[%clk 0:11:42]} 31. Kb1 {[%clk 0:13:42.7]} 31... Ba2+ {[%clk 0:11:25.1]}
32. Ka1 {[%clk 0:13:44.9]} 32... Bb3+ {[%clk 0:11:27.1]} 33. Kb1 {[%clk
0:13:48.2]} 33... Qa2+ {[%clk 0:11:31.6]} 34. Kc1 {[%clk 0:13:51.7]} 34... Qxc2#
{[%clk 0:11:36.2]} 0-1

[Event "Live Chess"]
[Site "Chess.com"]
[Date "2023.09.16"]
[Round "-"]
[White "Francisco_Ferrari"]
[Black "lucasportolelis"]
[Result "1/2-1/2"]
[WhiteElo "2168"]
[BlackElo "1702"]
[TimeControl "900+5"]
[EndTime "7:42:50 PDT"]
[Termination "Empate por repetição"]

1. e4 {[%clk 0:14:58.1]} 1... e5 {[%clk 0:15:03.9]} 2. Nf3 {[%clk 0:14:53.2]}
2... Nc6 {[%clk 0:15:05.7]} 3. Bc4 {[%clk 0:14:52.7]} 3... Bc5 {[%clk
0:15:07.5]} 4. c3 {[%clk 0:14:56.1]} 4... Nf6 {[%clk 0:15:07.4]} 5. d4 {[%clk
0:14:53.6]} 5... exd4 {[%clk 0:15:10.7]} 6. e5 {[%clk 0:14:56.7]} 6... d5 {[%clk
0:15:14.1]} 7. Bb5 {[%clk 0:15:00.4]} 7... Ne4 {[%clk 0:15:16.1]} 8. cxd4 {[%clk
0:15:04.6]} 8... Bb6 {[%clk 0:15:17.9]} 9. Nc3 {[%clk 0:15:03.1]} 9... O-O
{[%clk 0:15:07.1]} 10. Be3 {[%clk 0:15:03.1]} 10... Bg4 {[%clk 0:15:10]} 11. h3
{[%clk 0:15:06.4]} 11... Bh5 {[%clk 0:15:13.7]} 12. Qc2 {[%clk 0:15:09.9]} 12...
Ba5 {[%clk 0:15:17]} 13. O-O {[%clk 0:13:59]} 13... Bxf3 {[%clk 0:15:19.4]} 14.
gxf3 {[%clk 0:14:02.5]} 14... Nxd4 {[%clk 0:15:21.7]} 15. Bxd4 {[%clk
0:13:48.5]} 15... Qg5+ {[%clk 0:15:20.1]} 16. Kh1 {[%clk 0:13:28.8]} 16... Bxc3
{[%clk 0:15:23.7]} 17. bxc3 {[%clk 0:13:27.8]} 17... Qf5 {[%clk 0:15:21.4]} 18.
fxe4 {[%clk 0:13:14.8]} 18... Qxh3+ {[%clk 0:15:23.4]} 19. Kg1 {[%clk
0:13:18.7]} 19... Qg4+ {[%clk 0:15:26.6]} 20. Kh1 {[%clk 0:13:21]} 20... Qh3+
{[%clk 0:15:29.7]} 21. Kg1 {[%clk 0:13:25.2]} 21... Qg4+ {[%clk 0:15:33.8]} 22.
Kh1 {[%clk 0:13:29.7]} 22... Qh3+ {[%clk 0:15:38.1]} 1/2-1/2

[Event "Live Chess"]
[Site "Chess.com"]
[Date "2023.09.16"]
[Round "-"]
[White "abaakate"]
[Black "maylso"]
[Result "1-0"]
[WhiteElo "1917"]
[BlackElo "1433"]
[TimeControl "900+5"]
[EndTime "7:43:17 PDT"]
[Termination "abaakate venceu por desistência"]

1. d4 {[%clk 0:15:03.7]} 1... Nf6 {[%clk 0:15:00.6]} 2. c4 {[%clk 0:15:07.2]}
2... g6 {[%clk 0:15:05]} 3. Nc3 {[%clk 0:15:10.4]} 3... Bg7 {[%clk 0:15:09.3]}
4. e4 {[%clk 0:15:15]} 4... d6 {[%clk 0:15:12.8]} 5. Nf3 {[%clk 0:15:19.6]} 5...
O-O {[%clk 0:15:16.7]} 6. Be2 {[%clk 0:15:24.2]} 6... e5 {[%clk 0:15:13.4]} 7.
d5 {[%clk 0:15:27.5]} 7... Nbd7 {[%clk 0:15:12.4]} 8. O-O {[%clk 0:15:20.7]}
8... Ne8 {[%clk 0:15:14.3]} 9. b4 {[%clk 0:15:18.7]} 9... f5 {[%clk 0:15:16.1]}
10. exf5 {[%clk 0:15:20.7]} 10... gxf5 {[%clk 0:15:20.7]} 11. Bb2 {[%clk
0:15:20.2]} 11... Ndf6 {[%clk 0:15:12.3]} 12. c5 {[%clk 0:15:05.7]} 12... f4
{[%clk 0:15:10.1]} 13. Qc2 {[%clk 0:14:43.9]} 13... Nh5 {[%clk 0:15:05.5]} 14.
Nxe5 {[%clk 0:14:34.4]} 14... dxe5 {[%clk 0:14:54.2]} 15. Bxh5 {[%clk
0:14:36.6]} 15... Bf5 {[%clk 0:14:51.4]} 16. Qb3 {[%clk 0:14:32.8]} 16... Kh8
{[%clk 0:14:48.3]} 17. Rad1 {[%clk 0:14:28.8]} 17... Qg5 {[%clk 0:14:49.1]} 18.
Bf3 {[%clk 0:14:30.7]} 18... Bh3 {[%clk 0:14:44]} 19. Ne4 {[%clk 0:14:29.8]}
19... Qg6 {[%clk 0:14:30.5]} 20. Kh1 {[%clk 0:14:20.9]} 20... Bf5 {[%clk
0:14:13.7]} 21. Rfe1 {[%clk 0:14:23]} 21... Nf6 {[%clk 0:13:21]} 22. Nxf6 {[%clk
0:14:23.2]} 22... Bxf6 {[%clk 0:13:24.4]} 23. d6 {[%clk 0:14:23.3]} 23... cxd6
{[%clk 0:13:25.5]} 24. Rxd6 {[%clk 0:14:28.2]} 24... e4 {[%clk 0:12:30.9]} 25.
Rxf6 {[%clk 0:13:53.6]} 25... Rxf6 {[%clk 0:11:42.8]} 26. Bh5 {[%clk 0:13:56.2]}
26... Qg5 {[%clk 0:09:55.9]} 27. Qf7 {[%clk 0:13:34.1]} 27... Rf8 {[%clk
0:09:18.5]} 28. Qxf8+ {[%clk 0:13:34.2]} 1-0

[Event "Live Chess"]
[Site "Chess.com"]
[Date "2023.09.16"]
[Round "-"]
[White "augustodemoraisrocha"]
[Black "fernanndodod"]
[Result "0-1"]
[WhiteElo "1459"]
[BlackElo "1944"]
[TimeControl "900+5"]
[EndTime "7:44:14 PDT"]
[Termination "fernanndodod venceu por desistência"]

1. e4 {[%clk 0:15:03.3]} 1... e5 {[%clk 0:15:03.5]} 2. Nf3 {[%clk 0:15:07.6]}
2... Nc6 {[%clk 0:15:06.9]} 3. Bb5 {[%clk 0:15:11.7]} 3... a6 {[%clk 0:15:10.5]}
4. Ba4 {[%clk 0:15:15.2]} 4... Nf6 {[%clk 0:15:14.4]} 5. Nc3 {[%clk 0:15:18.8]}
5... Be7 {[%clk 0:15:17.9]} 6. Bxc6 {[%clk 0:15:19.3]} 6... dxc6 {[%clk
0:15:22.8]} 7. d4 {[%clk 0:15:23.3]} 7... exd4 {[%clk 0:15:21.2]} 8. Qxd4 {[%clk
0:15:27.8]} 8... Qxd4 {[%clk 0:15:22.5]} 9. Nxd4 {[%clk 0:15:32.7]} 9... O-O
{[%clk 0:15:26.8]} 10. Bg5 {[%clk 0:15:35.3]} 10... Re8 {[%clk 0:15:27.4]} 11.
Bxf6 {[%clk 0:15:36.7]} 11... Bxf6 {[%clk 0:15:30.7]} 12. O-O-O {[%clk
0:15:39.9]} 12... Be6 {[%clk 0:15:30.3]} 13. Nxe6 {[%clk 0:15:42.3]} 13... Rxe6
{[%clk 0:15:35.2]} 14. Rhe1 {[%clk 0:15:36.5]} 14... Bxc3 {[%clk 0:15:36.2]} 15.
bxc3 {[%clk 0:15:39.7]} 15... Rd6 {[%clk 0:15:34.1]} 16. e5 {[%clk 0:15:37.7]}
16... Rd5 {[%clk 0:15:35.4]} 17. Rxd5 {[%clk 0:15:26.4]} 17... cxd5 {[%clk
0:15:38.9]} 18. Rd1 {[%clk 0:15:31]} 18... c6 {[%clk 0:15:42.6]} 19. Kb2 {[%clk
0:15:32.5]} 19... Kf8 {[%clk 0:15:45.9]} 20. Kb3 {[%clk 0:15:33]} 20... Ke7
{[%clk 0:15:47.4]} 21. c4 {[%clk 0:15:36.8]} 21... Ke6 {[%clk 0:15:49]} 22.
cxd5+ {[%clk 0:15:38.7]} 22... cxd5 {[%clk 0:15:53.9]} 23. Re1 {[%clk
0:15:40.8]} 23... Rc8 {[%clk 0:15:56.2]} 24. Re2 {[%clk 0:15:39.7]} 24... Rc6
{[%clk 0:15:56.8]} 25. Kb4 {[%clk 0:15:42.1]} 25... b6 {[%clk 0:15:59.2]} 26. a4
{[%clk 0:15:40.8]} 26... Rc4+ {[%clk 0:16:00.7]} 27. Kb3 {[%clk 0:15:44.1]}
27... Re4 {[%clk 0:16:01.3]} 28. Rxe4 {[%clk 0:15:45]} 28... dxe4 {[%clk
0:16:06.2]} 29. Kc4 {[%clk 0:15:30.6]} 29... Kxe5 {[%clk 0:16:09.4]} 30. g3
{[%clk 0:15:24.6]} 30... f5 {[%clk 0:16:07.3]} 31. a5 {[%clk 0:15:18]} 31...
bxa5 {[%clk 0:16:08.8]} 32. Kb3 {[%clk 0:15:22]} 32... g5 {[%clk 0:16:09.9]} 33.
Ka4 {[%clk 0:15:20.2]} 33... f4 {[%clk 0:16:13.6]} 34. Kxa5 {[%clk 0:15:19.6]}
34... e3 {[%clk 0:16:17.3]} 35. fxe3 {[%clk 0:15:18.7]} 35... fxe3 {[%clk
0:16:20.4]} 36. c4 {[%clk 0:15:21.7]} 36... e2 {[%clk 0:16:23.6]} 0-1

[Event "Live Chess"]
[Site "Chess.com"]
[Date "2023.09.16"]
[Round "-"]
[White "Torugomilho11"]
[Black "zezemito921"]
[Result "1-0"]
[WhiteElo "1152"]
[BlackElo "916"]
[TimeControl "900+5"]
[EndTime "7:44:30 PDT"]
[Termination "Torugomilho11 venceu por desistência"]

1. e4 {[%clk 0:15:04.2]} 1... e5 {[%clk 0:15:03.4]} 2. Nf3 {[%clk 0:15:08.2]}
2... Nc6 {[%clk 0:15:02.8]} 3. Bc4 {[%clk 0:15:10.9]} 3... Nf6 {[%clk
0:15:04.8]} 4. O-O {[%clk 0:14:57.3]} 4... Be7 {[%clk 0:14:44]} 5. Nc3 {[%clk
0:14:58.2]} 5... O-O {[%clk 0:14:45.2]} 6. d3 {[%clk 0:14:59.6]} 6... d6 {[%clk
0:14:36.4]} 7. Bg5 {[%clk 0:15:01.8]} 7... Bg4 {[%clk 0:14:35.5]} 8. h3 {[%clk
0:14:55]} 8... Bxf3 {[%clk 0:14:37.7]} 9. Qxf3 {[%clk 0:14:58.1]} 9... Nd4
{[%clk 0:14:37.5]} 10. Qd1 {[%clk 0:15:00.2]} 10... a6 {[%clk 0:14:28.6]} 11.
Nd5 {[%clk 0:15:01.1]} 11... b5 {[%clk 0:14:23.2]} 12. Nxe7+ {[%clk 0:14:56.3]}
12... Qxe7 {[%clk 0:14:25.7]} 13. Bd5 {[%clk 0:14:57.6]} 13... c6 {[%clk
0:14:04.1]} 14. Bb3 {[%clk 0:14:53.3]} 14... a5 {[%clk 0:14:01.6]} 15. c3 {[%clk
0:14:53]} 15... Nxb3 {[%clk 0:14:03.3]} 16. Qxb3 {[%clk 0:14:56.8]} 16... a4
{[%clk 0:14:04.7]} 17. Qd1 {[%clk 0:14:48.7]} 17... h6 {[%clk 0:14:03.2]} 18.
Bh4 {[%clk 0:14:51.7]} 18... d5 {[%clk 0:14:00.4]} 19. exd5 {[%clk 0:14:48.2]}
19... cxd5 {[%clk 0:14:03.3]} 20. Re1 {[%clk 0:14:46.7]} 20... e4 {[%clk
0:13:48.6]} 21. dxe4 {[%clk 0:14:21.2]} 21... dxe4 {[%clk 0:13:50.3]} 22. Qd4
{[%clk 0:14:08.4]} 22... g5 {[%clk 0:13:08.6]} 23. Bg3 {[%clk 0:14:04.4]} 23...
h5 {[%clk 0:12:39.5]} 24. Be5 {[%clk 0:14:03.8]} 24... Kg7 {[%clk 0:11:10.8]}
25. Bd6 {[%clk 0:14:06.3]} 25... Qd7 {[%clk 0:10:58.2]} 26. Bxf8+ {[%clk
0:14:08.4]} 26... Kxf8 {[%clk 0:10:55.9]} 27. Qxd7 {[%clk 0:14:12.7]} 27... Nxd7
{[%clk 0:10:59]} 28. Rxe4 {[%clk 0:14:16.2]} 28... Re8 {[%clk 0:11:00.3]} 29.
Rxe8+ {[%clk 0:14:19.7]} 29... Kxe8 {[%clk 0:11:03.6]} 30. Re1+ {[%clk
0:14:24.3]} 30... Kf8 {[%clk 0:11:04.8]} 31. Kh2 {[%clk 0:14:23.7]} 31... Nf6
{[%clk 0:11:06.7]} 32. Re5 {[%clk 0:14:21.7]} 32... g4 {[%clk 0:11:05.5]} 33.
Rxb5 {[%clk 0:14:18.6]} 33... gxh3 {[%clk 0:11:01.9]} 34. gxh3 {[%clk
0:14:22.3]} 34... Ne4 {[%clk 0:11:03.2]} 35. Kg2 {[%clk 0:14:20.2]} 1-0

[Event "Live Chess"]
[Site "Chess.com"]
[Date "2023.09.16"]
[Round "-"]
[White "Edson_Zarnelli"]
[Black "z_anne_ari"]
[Result "0-1"]
[WhiteElo "788"]
[BlackElo "1258"]
[TimeControl "900+5"]
[EndTime "7:44:46 PDT"]
[Termination "z_anne_ari venceu por desistência"]

1. e4 {[%clk 0:15:04.2]} 1... d5 {[%clk 0:15:00.9]} 2. exd5 {[%clk 0:15:04.3]}
2... Qxd5 {[%clk 0:15:04.9]} 3. Nc3 {[%clk 0:15:08.8]} 3... Qa5 {[%clk
0:15:08.8]} 4. Bc4 {[%clk 0:14:55.6]} 4... Nf6 {[%clk 0:15:10.9]} 5. Nf3 {[%clk
0:14:57.8]} 5... Bg4 {[%clk 0:15:11.6]} 6. O-O {[%clk 0:14:52.8]} 6... c6 {[%clk
0:15:14.3]} 7. Be2 {[%clk 0:14:52.2]} 7... Bxf3 {[%clk 0:15:11.8]} 8. Bxf3
{[%clk 0:14:55.6]} 8... Nbd7 {[%clk 0:15:15.9]} 9. Ne4 {[%clk 0:14:55.5]} 9...
Nxe4 {[%clk 0:15:15.9]} 10. Bxe4 {[%clk 0:14:58.5]} 10... O-O-O {[%clk
0:15:17.9]} 11. c3 {[%clk 0:14:48.8]} 11... Nf6 {[%clk 0:15:21.3]} 12. Qf3
{[%clk 0:14:45.7]} 12... Nxe4 {[%clk 0:15:19.4]} 13. Qxe4 {[%clk 0:14:46.7]}
13... e6 {[%clk 0:15:21.2]} 14. b4 {[%clk 0:14:46.9]} 14... Qc7 {[%clk
0:15:22.2]} 15. d3 {[%clk 0:14:42.4]} 15... Be7 {[%clk 0:15:15.5]} 16. Bf4
{[%clk 0:14:45.3]} 16... Bd6 {[%clk 0:15:17.9]} 17. Bxd6 {[%clk 0:14:48.4]}
17... Rxd6 {[%clk 0:15:18.7]} 18. c4 {[%clk 0:14:49]} 18... f5 {[%clk 0:15:22]}
19. Qe5 {[%clk 0:14:49.7]} 19... Re8 {[%clk 0:15:22.6]} 20. Rad1 {[%clk
0:14:47.9]} 20... Rd7 {[%clk 0:15:07.8]} 21. a3 {[%clk 0:14:42.7]} 21... Qxe5
{[%clk 0:15:11.1]} 22. d4 {[%clk 0:14:41]} 22... Rxd4 {[%clk 0:15:13.9]} 23.
Rxd4 {[%clk 0:14:44.3]} 23... Qxd4 {[%clk 0:15:18.4]} 24. c5 {[%clk 0:14:44.3]}
24... Rd8 {[%clk 0:15:22.3]} 0-1

[Event "Live Chess"]
[Site "Chess.com"]
[Date "2023.09.16"]
[Round "-"]
[White "Abofado"]
[Black "maylso"]
[Result "0-1"]
[WhiteElo "569"]
[BlackElo "1433"]
[TimeControl "900+5"]
[EndTime "7:44:55 PDT"]
[Termination "maylso venceu por desistência"]

1. e4 {[%clk 0:15:02.8]} 1... e5 {[%clk 0:15:03.1]} 2. Nf3 {[%clk 0:15:06.5]}
2... Nc6 {[%clk 0:15:07.6]} 3. d4 {[%clk 0:15:09.4]} 3... d6 {[%clk 0:15:03.9]}
4. dxe5 {[%clk 0:15:11.8]} 4... dxe5 {[%clk 0:15:07.3]} 5. Nxe5 {[%clk
0:15:15.6]} 5... Qxd1+ {[%clk 0:15:07.3]} 6. Kxd1 {[%clk 0:15:15.8]} 6... Nxe5
{[%clk 0:15:11]} 7. Bf4 {[%clk 0:15:18.4]} 7... Bd6 {[%clk 0:15:13.3]} 8. Bc4
{[%clk 0:15:20.7]} 8... Nf6 {[%clk 0:15:16.9]} 9. Nc3 {[%clk 0:15:20.3]} 9...
O-O {[%clk 0:15:16.3]} 10. Nb5 {[%clk 0:15:24.3]} 10... Nxc4 {[%clk 0:15:12.4]}
11. Nxd6 {[%clk 0:15:27.4]} 0-1

[Event "Live Chess"]
[Site "Chess.com"]
[Date "2023.09.16"]
[Round "-"]
[White "Ggavioli"]
[Black "Mozart5501"]
[Result "0-1"]
[WhiteElo "1555"]
[BlackElo "1787"]
[TimeControl "900+5"]
[EndTime "7:45:07 PDT"]
[Termination "Mozart5501 venceu por xeque-mate"]

1. e4 {[%clk 0:15:04.2]} 1... e5 {[%clk 0:15:04.6]} 2. Nf3 {[%clk 0:15:06.2]}
2... Nc6 {[%clk 0:15:09.3]} 3. Bb5 {[%clk 0:15:09.3]} 3... a6 {[%clk 0:15:12.7]}
4. Bxc6 {[%clk 0:15:13.7]} 4... dxc6 {[%clk 0:15:17.3]} 5. Nc3 {[%clk
0:15:18.2]} 5... f6 {[%clk 0:15:20.8]} 6. d3 {[%clk 0:15:22.3]} 6... Bb4 {[%clk
0:15:24.7]} 7. Bd2 {[%clk 0:15:26.5]} 7... Bg4 {[%clk 0:15:25.2]} 8. a3 {[%clk
0:15:30.2]} 8... Bxc3 {[%clk 0:15:28.7]} 9. Bxc3 {[%clk 0:15:34.1]} 9... Bxf3
{[%clk 0:15:32.6]} 10. Qxf3 {[%clk 0:15:39]} 10... Ne7 {[%clk 0:15:36.2]} 11.
Qg3 {[%clk 0:15:40.8]} 11... O-O {[%clk 0:15:37.3]} 12. O-O {[%clk 0:15:44.5]}
12... Qd6 {[%clk 0:15:39.1]} 13. Bb4 {[%clk 0:15:47.4]} 13... c5 {[%clk
0:15:42.4]} 14. Bc3 {[%clk 0:15:51.3]} 14... Rae8 {[%clk 0:15:45.6]} 15. f4
{[%clk 0:15:53.3]} 15... exf4 {[%clk 0:15:49.2]} 16. Qxf4 {[%clk 0:15:57.4]}
16... Qxf4 {[%clk 0:15:51.4]} 17. Rxf4 {[%clk 0:16:01.1]} 17... Ng6 {[%clk
0:15:55.3]} 18. Rf5 {[%clk 0:16:04.1]} 18... Ne5 {[%clk 0:15:57.5]} 19. Bxe5
{[%clk 0:16:07]} 19... Rxe5 {[%clk 0:16:00.6]} 20. Raf1 {[%clk 0:16:09.7]} 20...
Rfe8 {[%clk 0:16:02.7]} 21. g3 {[%clk 0:16:08]} 21... c4 {[%clk 0:16:05]} 22.
Rxe5 {[%clk 0:16:09.2]} 22... Rxe5 {[%clk 0:16:08.2]} 23. Kf2 {[%clk 0:16:07.7]}
23... cxd3 {[%clk 0:16:08.3]} 24. cxd3 {[%clk 0:16:12.2]} 24... Rb5 {[%clk
0:16:12.1]} 25. Rb1 {[%clk 0:16:14.6]} 25... Kf7 {[%clk 0:16:14.6]} 26. Ke3
{[%clk 0:16:18.8]} 26... Ke6 {[%clk 0:16:18.7]} 27. b4 {[%clk 0:16:20]} 27... a5
{[%clk 0:16:21.5]} 28. h3 {[%clk 0:16:17.2]} 28... c5 {[%clk 0:16:23.4]} 29. Kd2
{[%clk 0:16:18.2]} 29... axb4 {[%clk 0:16:27.7]} 30. axb4 {[%clk 0:16:21.8]}
30... Rxb4 {[%clk 0:16:29.8]} 31. Rc1 {[%clk 0:16:17.4]} 31... b6 {[%clk
0:16:31.6]} 32. Ke3 {[%clk 0:16:19.6]} 32... Ke5 {[%clk 0:16:34.1]} 33. Rf1
{[%clk 0:16:21]} 33... Rb3 {[%clk 0:16:35.4]} 34. Rf5+ {[%clk 0:16:24.2]} 34...
Ke6 {[%clk 0:16:38.7]} 35. Rd5 {[%clk 0:16:26.8]} 35... g6 {[%clk 0:16:36.3]}
36. Rd8 {[%clk 0:16:27.6]} 36... b5 {[%clk 0:16:33.3]} 37. Re8+ {[%clk
0:16:19.8]} 37... Kf7 {[%clk 0:16:35.5]} 38. Rb8 {[%clk 0:16:22.2]} 38... c4
{[%clk 0:16:37.9]} 39. Rb7+ {[%clk 0:16:25.5]} 39... Ke6 {[%clk 0:16:41.1]} 40.
Rxh7 {[%clk 0:16:18]} 40... Rxd3+ {[%clk 0:16:44.7]} 41. Kf4 {[%clk 0:16:22.3]}
41... b4 {[%clk 0:16:43.5]} 42. Rb7 {[%clk 0:16:23.3]} 42... b3 {[%clk
0:16:47.3]} 43. Rb6+ {[%clk 0:16:24.6]} 43... Kf7 {[%clk 0:16:49.5]} 44. Rb7+
{[%clk 0:16:25.4]} 44... Ke8 {[%clk 0:16:54.1]} 45. e5 {[%clk 0:16:28.3]} 45...
fxe5+ {[%clk 0:16:56.8]} 46. Kxe5 {[%clk 0:16:33.2]} 46... Rxg3 {[%clk
0:17:00.1]} 47. Ke6 {[%clk 0:16:37.3]} 47... Re3+ {[%clk 0:17:04]} 48. Kf6
{[%clk 0:16:41.2]} 48... Rxh3 {[%clk 0:17:02.2]} 49. Kxg6 {[%clk 0:16:45.5]}
49... Rd3 {[%clk 0:17:05.3]} 50. Kf6 {[%clk 0:16:49.2]} 50... Rd7 {[%clk
0:17:09.3]} 51. Rb8+ {[%clk 0:16:52.1]} 51... Rd8 {[%clk 0:17:12.3]} 52. Rb4
{[%clk 0:16:54.8]} 52... Rc8 {[%clk 0:17:12.6]} 53. Ke6 {[%clk 0:16:58.5]} 53...
c3 {[%clk 0:17:15.4]} 54. Rh4 {[%clk 0:17:00]} 54... Rc6+ {[%clk 0:17:16.9]} 55.
Kd5 {[%clk 0:17:03.6]} 55... Rf6 {[%clk 0:17:19.4]} 56. Ke5 {[%clk 0:15:56.9]}
56... Rc6 {[%clk 0:17:17]} 57. Kd5 {[%clk 0:15:59.5]} 57... Rg6 {[%clk
0:17:15.8]} 58. Rh8+ {[%clk 0:15:59.5]} 58... Kf7 {[%clk 0:17:18.9]} 59. Rh7+
{[%clk 0:16:00]} 59... Rg7 {[%clk 0:17:22.1]} 60. Rh3 {[%clk 0:16:04.1]} 60...
c2 {[%clk 0:17:23.2]} 61. Rf3+ {[%clk 0:16:08.2]} 61... Kg8 {[%clk 0:17:26]} 62.
Rxb3 {[%clk 0:16:02.6]} 62... c1=Q {[%clk 0:17:27.3]} 63. Rb8+ {[%clk
0:16:07.2]} 63... Kh7 {[%clk 0:17:29.4]} 64. Ke4 {[%clk 0:16:08.8]} 64... Re7+
{[%clk 0:17:31.7]} 65. Kd5 {[%clk 0:15:43.4]} 65... Qd2+ {[%clk 0:17:29.8]} 66.
Kc6 {[%clk 0:15:47.2]} 66... Qd7+ {[%clk 0:17:32.1]} 67. Kc5 {[%clk 0:15:47.2]}
67... Re5+ {[%clk 0:17:35.2]} 68. Kb6 {[%clk 0:15:49.3]} 68... Qb5+ {[%clk
0:17:35.2]} 69. Kc7 {[%clk 0:15:37.5]} 69... Rc5+ {[%clk 0:17:37.1]} 70. Kd6
{[%clk 0:15:34.9]} 70... Qc6+ {[%clk 0:17:39.7]} 71. Ke7 {[%clk 0:15:37.2]}
71... Re5+ {[%clk 0:17:40.3]} 72. Kf7 {[%clk 0:15:40.8]} 72... Qe6+ {[%clk
0:17:43.6]} 73. Kf8 {[%clk 0:15:44.3]} 73... Qe7# {[%clk 0:17:46.3]} 0-1